[Event "CZE-ch Youth B16 2022"]
[Site "Luhacovice"]
[Date "2022.03.18"]
[Round "8.7"]
[White "Zezula, Jakub"]
[Black "Kubiczek, Michal"]
[Result "1-0"]
[ECO "C96"]
[WhiteElo "1891"]
[BlackElo "1720"]
[Annotator "NA"]
[PlyCount "51"]
[EventDate "2022.03.12"]
[EventType "swiss"]
[EventCountry "CZE"]
[SourceTitle "playchess.com"]
[Source "ChessBase"]
[SourceQuality "1"]
[TimeControl "40/5400+30:1800+30"]

1. e4 {[%emt 0:00:03]} e5 {[%emt 0:00:07]} 2. Nf3 {[%emt 0:00:05]} Nc6 {[%emt 0:00:04]} 3. Bb5 {[%emt 0:00:05]} a6 {[%emt 0:00:05]} 4. Ba4 {[%emt 0:00:04]} Nf6 {[%emt 0:00:04]} 5. O-O {[%emt 0:00:05]} Be7 {[%emt 0:00:32]} 6. Re1 {[%emt 0:00:07]} b5 {[%emt 0:00:10]} 7. Bb3 {[%emt 0:00:05]} O-O {[%emt 0:00:10]} 8. h3 {[%emt 0:00:17]} d6 {[%emt 0:04:16]} 9. c3 {[%emt 0:00:09]} Na5 {[%emt 0:04:05]} 10. Bc2 {[%emt 0:00:06]} c5 {[%emt 0:00:06]} 11. d4 {[%emt 0:00:32]} cxd4 {[%emt 0:03:01]} 12. cxd4 {[%emt 0:00:21]} Nc6 {[%emt 0:01:56]} 13. Nc3 {[%emt 0:06:53]} Nxd4 {[%emt 0:15:53]} 14. Nxd4 exd4 15. Qxd4 {[%emt 0:01:30]} Bb7 {[%emt 0:02:22]} 16. Bf4 {[%emt 0:14:10]} Rc8 {[%emt 0:07:21]} 17. Rac1 {[%emt 0:02:56]} Rc4 {[%emt 0:08:13]} 18. Qd3 {[%emt 0:03:48]} Qa8 {[%emt 0:01:33]} (18... d5 $14) 19. Bg5 {[%emt 0:04:59]} ({Much weaker is} 19. Bxd6 $6 Rd8 20. Qxc4 (20. Bxe7 Rxd3 21. Bxd3 Rc6 $11) (20. e5 Bxd6 21. exd6 Bxg2 $14) 20... bxc4 $11) 19... h6 $18 {[%emt 0:05:29]} (19... Rd8 $16) 20. Bxf6 {[%emt 0:01:28]} Bxf6 {[%emt 0:04:48]} 21. e5 {[%emt 0:00:09]} g6 {[%emt 0:02:28]} 22. exf6 {[%emt 0:00:07]} Bxg2 {[%emt 0:00:57]} 23. Qg3 {[%emt 0:00:18]} Rc5 {[%emt 0:02:55]} 24. h4 {[%emt 0:00:21]} Bh1 {[%emt 0:01:32]} 25. Bxg6 {[%emt 0:00:41]} Kh8 {[%emt 0:00:25]} 26. Bh7 {[%emt 0:00:11]} 1-0

[Event "CZE-ch Youth B16 2022"]
[Site "Luhacovice"]
[Date "2022.03.18"]
[Round "8.8"]
[White "Dedek, Jan"]
[Black "Bezdek, Tomas"]
[Result "1/2-1/2"]
[ECO "E19"]
[WhiteElo "1963"]
[BlackElo "1855"]
[Annotator "NA"]
[PlyCount "61"]
[EventDate "2022.03.12"]
[EventType "swiss"]
[EventCountry "CZE"]
[SourceTitle "playchess.com"]
[Source "ChessBase"]
[SourceQuality "1"]
[TimeControl "40/5400+30:1800+30"]

1. d4 {[%emt 0:00:29]} Nf6 {[%emt 0:00:09]} 2. c4 {[%emt 0:00:37]} e6 {[%emt 0:00:13]} 3. Nf3 {[%emt 0:00:14]} b6 {[%emt 0:00:11]} 4. g3 {[%emt 0:00:07]} Bb7 {[%emt 0:00:06]} 5. Bg2 {[%emt 0:00:07]} Be7 {[%emt 0:00:19]} 6. O-O {[%emt 0:01:05]} O-O {[%emt 0:00:06]} 7. Nc3 {[%emt 0:01:12]} Ne4 {[%emt 0:00:42]} 8. Qc2 {[%emt 0:00:44]} Nxc3 {[%emt 0:00:23]} 9. Qxc3 {[%emt 0:06:46]} c5 {[%emt 0:00:55]} 10. Rd1 {[%emt 0:02:11]} Bf6 {[%emt 0:09:14]} 11. Qc2 {[%emt 0:03:47]} Nc6 {[%emt 0:22:40]} 12. dxc5 {[%emt 0:05:16]} bxc5 {[%emt 0:01:36]} 13. Bf4 {[%emt 0:01:34]} Re8 {[%emt 0:12:53]} 14. Bd6 {[%emt 0:07:34]} Qb6 {[%emt 0:01:59]} 15. Rd2 {[%emt 0:00:34]} Rac8 {[%emt 0:13:39]} 16. Rad1 $11 {[%emt 0:05:10]} Nd4 {[%emt 0:06:36]} 17. Nxd4 {[%emt 0:00:23]} Bxg2 {[%emt 0:00:52]} 18. Kxg2 {[%emt 0:01:50]} Bxd4 {[%emt 0:00:12]} 19. e3 {[%emt 0:10:37]} Qxd6 {[%emt 0:01:07]} 20. exd4 {[%emt 0:00:21]} Qc6+ {[%emt 0:01:22]} 21. Kg1 {[%emt 0:00:57]} cxd4 {[%emt 0:01:01]} 22. Rxd4 {[%emt 0:00:09]} d5 {[%emt 0:00:18]} 23. b3 {[%emt 0:00:14]} h6 {[%emt 0:04:19]} 24. Qd3 {[%emt 0:00:55]} dxc4 {[%emt 0:00:46]} 25. Rxc4 {[%emt 0:00:32]} Qb6 {[%emt 0:00:34]} 26. Rd4 {[%emt 0:02:53]} Qa5 {[%emt 0:01:51]} 27. Ra4 {[%emt 0:03:52]} Qb6 {[%emt 0:05:54]} 28. Rd4 {[%emt 0:05:19]} Qa5 {[%emt 0:00:23]} 29. Ra4 {[%emt 0:06:13]} Qb6 {[%emt 0:00:07]} 30. Rd4 {[%emt 0:01:01]} Qa5 {[%emt 0:00:05]} 31. Ra4 {[%emt 0:00:20]} 1/2-1/2

[Event "CZE-ch Youth B16 2022"]
[Site "Luhacovice"]
[Date "2022.03.18"]
[Round "8.9"]
[White "Mametev, Artem"]
[Black "Oborny, Stanislav"]
[Result "1-0"]
[ECO "C45"]
[WhiteElo "1848"]
[BlackElo "1674"]
[Annotator "NA"]
[PlyCount "85"]
[EventDate "2022.03.12"]
[EventType "swiss"]
[EventCountry "CZE"]
[SourceTitle "playchess.com"]
[Source "ChessBase"]
[SourceQuality "1"]
[TimeControl "40/5400+30:1800+30"]

1. e4 e5 2. Nf3 Nc6 3. d4 exd4 4. Nxd4 Bc5 5. Nxc6 Qf6 6. Qd2 Qxc6 7. Bd3 Ne7 8. O-O O-O 9. Qe2 d5 10. Nc3 d4 11. Bb5 {[#]} Qg6 $1 12. Na4 Bb6 13. Nxb6 axb6 14. Bf4 c5 15. a3 Be6 16. Bd6 ({White should try} 16. a4 $14) 16... Bg4 17. f3 Bxf3 $11 18. Rxf3 Qxd6 19. e5 Qc7 20. Bd3 g6 21. Raf1 Nc6 22. e6 f5 23. Bc4 Kh8 24. Re1 Rae8 25. g4 fxg4 26. Rf7 Qd6 27. Rxb7 g3 28. Rxb6 Qc7 29. Rxc6 Qxc6 30. Qe5+ Kg8 31. e7+ Rf7 32. Bxf7+ Kxf7 33. hxg3 Kg8 34. Rf1 Qd7 35. Rf8+ Rxf8 36. exf8=Q+ Kxf8 37. Qh8+ Ke7 38. Qxh7+ Kd8 39. Qxd7+ Kxd7 40. Kf2 Kd6 41. Ke2 Kd5 42. b3 g5 43. Kd3 1-0

[Event "CZE-ch Youth B16 2022"]
[Site "Luhacovice"]
[Date "2022.03.18"]
[Round "8.10"]
[White "Mrazek, Roman"]
[Black "Pelc, Adam"]
[Result "0-1"]
[ECO "B13"]
[WhiteElo "1820"]
[BlackElo "1811"]
[Annotator "NA"]
[PlyCount "68"]
[EventDate "2022.03.12"]
[EventType "swiss"]
[EventCountry "CZE"]
[SourceTitle "playchess.com"]
[Source "ChessBase"]
[SourceQuality "1"]
[TimeControl "40/5400+30:1800+30"]

1. e4 {[%emt 0:00:02]} c6 {[%emt 0:00:11]} 2. d4 {[%emt 0:00:21]} d5 {[%emt 0:00:13]} 3. exd5 {[%emt 0:00:14]} cxd5 {[%emt 0:00:24]} 4. c4 {[%emt 0:00:18]} Nf6 {[%emt 0:01:09]} 5. Nc3 {[%emt 0:00:34]} Nc6 {[%emt 0:01:03]} 6. Bg5 {[%emt 0:00:56]} Be6 {[%emt 0:12:39]} 7. Bxf6 {[%emt 0:00:29]} exf6 {[%emt 0:00:11]} 8. c5 {[%emt 0:00:04]} Be7 {[%emt 0:02:14]} 9. Bb5 {[%emt 0:00:53]} O-O {[%emt 0:01:16]} 10. Nge2 {[%emt 0:05:45]} Qc7 {[%emt 0:11:27]} 11. Rc1 {[%emt 0:01:43]} Rad8 {[%emt 0:02:40]} 12. O-O {[%emt 0:02:07]} Bg4 {[%emt 0:04:13]} 13. f3 {[%emt 0:08:36]} Be6 {[%emt 0:02:52]} 14. a3 {[%emt 0:05:59]} f5 $14 {[%emt 0:16:14]} 15. b4 {[%emt 0:05:43]} a6 {[%emt 0:01:28]} 16. Ba4 {[%emt 0:01:16]} Bf6 {[%emt 0:04:53]} 17. Qd3 {[%emt 0:03:29]} Ne7 {[%emt 0:02:26]} 18. f4 {[%emt 0:03:05]} Ra8 {[%emt 0:03:18]} 19. Rb1 {[%emt 0:07:11]} g6 {[%emt 0:04:19]} 20. g3 {[%emt 0:03:51]} Bg7 {[%emt 0:00:37]} 21. Rfc1 {[%emt 0:02:23]} Kh8 {[%emt 0:01:25]} 22. Kg2 {[%emt 0:06:54]} Ng8 {[%emt 0:00:20]} 23. b5 {[%emt 0:01:01]} axb5 {[%emt 0:00:27]} 24. Qxb5 {[%emt 0:03:25]} Rfb8 {[%emt 0:01:17]} 25. Qb6 {[%emt 0:03:02]} Qe7 {[%emt 0:02:42]} 26. Rb4 {[%emt 0:05:47]} Bd7 {[%emt 0:08:04]} 27. Bb3 {[%emt 0:06:34]} Bc6 {[%emt 0:00:30]} 28. Bd1 {[%emt 0:03:14]} Rxa3 {[%emt 0:01:05]} 29. Rbb1 {[%emt 0:01:21]} Rba8 {[%emt 0:02:44]} 30. Qb4 {[%emt 0:01:16]} Nf6 {[%emt 0:01:10]} 31. Nb5 {[%emt 0:00:59]} Qe4+ {[%emt 0:01:18]} 32. Kh3 {[%emt 0:01:26]} Ng4 {[%emt 0:00:39]} 33. Qe1 {[%emt 0:00:49]} Bxb5 {[%emt 0:01:30]} 34. Rxb5 {[%emt 0:00:25]} Qf3 {[%emt 0:00:14]} 0-1

[Event "CZE-ch Youth B16 2022"]
[Site "Luhacovice"]
[Date "2022.03.18"]
[Round "8.11"]
[White "Vasinek, Martin"]
[Black "Simek, Viktor"]
[Result "1-0"]
[ECO "D30"]
[WhiteElo "1594"]
[BlackElo "1527"]
[Annotator "NA"]
[PlyCount "61"]
[EventDate "2022.03.12"]
[EventType "swiss"]
[EventCountry "CZE"]
[SourceTitle "playchess.com"]
[Source "ChessBase"]
[SourceQuality "1"]
[TimeControl "40/5400+30:1800+30"]

1. d4 {[%emt 0:00:03]} d5 {[%emt 0:00:07]} 2. c4 {[%emt 0:00:03]} c6 {[%emt 0:00:03]} 3. Nf3 {[%emt 0:00:06]} Nf6 {[%emt 0:00:09]} 4. e3 {[%emt 0:00:05]} e6 {[%emt 0:00:05]} 5. Nbd2 {[%emt 0:00:11]} Nbd7 {[%emt 0:00:54]} 6. Bd3 {[%emt 0:00:09]} Bd6 {[%emt 0:03:04]} 7. O-O {[%emt 0:00:08]} O-O {[%emt 0:00:04]} 8. e4 {[%emt 0:00:07]} dxe4 {[%emt 0:00:52]} 9. Nxe4 {[%emt 0:00:16]} Nxe4 {[%emt 0:00:16]} 10. Bxe4 {[%emt 0:00:07]} Nf6 {[%emt 0:01:27]} 11. Bc2 {[%emt 0:00:10]} b6 {[%emt 0:06:02]} 12. Bg5 {[%emt 0:01:51]} Re8 {[%emt 0:02:34]} 13. Qd3 {[%emt 0:01:43]} g6 {[%emt 0:01:37]} 14. Rad1 {[%emt 0:04:58]} Bb7 {[%emt 0:05:25]} 15. Rfe1 {[%emt 0:02:50]} Be7 {[%emt 0:05:00]} 16. h4 {[%emt 0:12:51]} c5 {[%emt 0:09:31]} 17. Ba4 {[%emt 0:09:16]} Qc7 {[%emt 0:24:12]} 18. Bxe8 {[%emt 0:01:48]} Rxe8 {[%emt 0:00:04]} 19. Ne5 {[%emt 0:01:04]} Rd8 {[%emt 0:02:11]} 20. Qe3 {[%emt 0:08:27]} cxd4 {[%emt 0:02:55]} 21. Rxd4 {[%emt 0:01:55]} Bc5 {[%emt 0:01:09]} 22. Rxd8+ {[%emt 0:00:22]} Qxd8 {[%emt 0:00:05]} 23. Qf4 {[%emt 0:01:25]} Be7 {[%emt 0:02:11]} 24. Ng4 {[%emt 0:07:47]} Nxg4 {[%emt 0:01:24]} 25. Bxe7 {[%emt 0:00:51]} Qxe7 {[%emt 0:01:33]} 26. Qxg4 {[%emt 0:00:04]} Qb4 {[%emt 0:01:00]} 27. Qe2 {[%emt 0:00:14]} Qa4 {[%emt 0:01:21]} 28. Rd1 {[%emt 0:13:33]} Qc6 {[%emt 0:02:25]} 29. Qg4 {[%emt 0:07:07]} Qc7 {[%emt 0:02:53]} 30. h5 {[%emt 0:00:39]} a6 {[%emt 0:02:03]} 31. Qg5 {[%emt 0:01:11]} 1-0

[Event "CZE-ch Youth B16 2022"]
[Site "Luhacovice"]
[Date "2022.03.18"]
[Round "8.12"]
[White "Zrubek, Adam"]
[Black "Trojan, Matyas"]
[Result "1-0"]
[ECO "C88"]
[WhiteElo "1661"]
[BlackElo "1582"]
[Annotator "NA"]
[PlyCount "71"]
[EventDate "2022.03.12"]
[EventType "swiss"]
[EventCountry "CZE"]
[SourceTitle "playchess.com"]
[Source "ChessBase"]
[SourceQuality "1"]
[TimeControl "40/5400+30:1800+30"]

1. e4 e5 2. Nf3 Nc6 3. Bb5 a6 4. Ba4 Nf6 5. O-O Be7 6. Re1 b5 7. Bb3 O-O 8. a4 Bb7 9. d3 d6 10. Nbd2 h6 11. Nf1 Na5 12. Ba2 c5 13. Ne3 g6 14. h3 bxa4 15. Nh2 Bc8 16. Nhg4 Nxg4 17. Nxg4 Bxg4 18. Qxg4 Kh7 19. Bd5 Rb8 20. Rxa4 Rb4 21. Ra2 f5 22. Qd1 fxe4 23. Bd2 Bh4 24. Rf1 Rd4 25. Bxa5 Qf6 26. Bxe4 d5 27. c3 Bxf2+ 28. Kh1 dxe4 29. cxd4 Qe6 30. b3 e3 31. Be1 exd4 32. Bxf2 exf2 33. Raxf2 Rb8 34. Qg4 Qg8 35. Rf7+ Kh8 36. Qf4 1-0

[Event "CZE-ch Youth B16 2022"]
[Site "Luhacovice"]
[Date "2022.03.19"]
[Round "9.1"]
[White "Dolensky, Filip"]
[Black "Janous, Marek"]
[Result "0-1"]
[ECO "B22"]
[WhiteElo "2021"]
[BlackElo "2056"]
[Annotator "ChessBase"]
[PlyCount "84"]
[EventDate "2022.03.12"]
[EventType "swiss"]
[EventCountry "CZE"]
[SourceTitle "playchess.com"]
[Source "ChessBase"]
[SourceQuality "1"]
[TimeControl "40/5400+30:1800+30"]

1. e4 c5 2. c3 Nf6 3. e5 Nd5 4. Nf3 e6 5. d4 cxd4 6. cxd4 b6 7. Bd2 Be7 8. Nc3 Nxc3 9. Bxc3 O-O 10. Bd3 Ba6 11. O-O Bxd3 12. Qxd3 d6 13. Rfd1 dxe5 14. d5 Qxd5 15. Qe2 Qb7 16. Nxe5 Bf6 17. Rd3 Nc6 18. Nd7 Bxc3 19. bxc3 Rfd8 20. Rad1 Qc7 21. Qd2 f6 22. Rd6 Re8 23. Qe2 Nd8 24. Qg4 Qxc3 25. R6d3 Qb2 26. Qe4 Nf7 27. R3d2 Qb5 28. h4 Rac8 29. a4 Qc6 30. Qg4 Kh8 31. Qh5 Re7 32. Qg4 Nh6 33. Qf4 e5 34. Qb4 Ree8 35. Qb3 Qc4 36. Qf3 Qxh4 37. g3 Qg4 38. Qd5 Qh3 39. f3 Nf5 40. g4 Ne3 41. Qf7 Qg3+ 42. Kh1 Nxd1 0-1

[Event "CZE-ch Youth B16 2022"]
[Site "Luhacovice"]
[Date "2022.03.19"]
[Round "9.4"]
[White "Le, Anh Dung"]
[Black "Jirasko, Miroslav"]
[Result "0-1"]
[ECO "A03"]
[WhiteElo "1998"]
[BlackElo "1933"]
[Annotator "ChessBase"]
[PlyCount "90"]
[EventDate "2022.03.12"]
[EventType "swiss"]
[EventCountry "CZE"]
[SourceTitle "playchess.com"]
[Source "ChessBase"]
[SourceQuality "1"]
[TimeControl "40/5400+30:1800+30"]

1. f4 {[%emt 0:00:09]} d5 {[%emt 0:00:54]} 2. Nf3 {[%emt 0:00:06]} c5 {[%emt 0:02:54]} 3. e3 {[%emt 0:04:45]} g6 4. Bb5+ {[%emt 0:00:25]} Bd7 {[%emt 0:08:26]} 5. Qe2 {[%emt 0:01:24]} a6 {[%emt 0:00:27]} 6. Bxd7+ {[%emt 0:00:09]} Nxd7 {[%emt 0:00:06]} 7. O-O {[%emt 0:05:40]} Bg7 8. d3 {[%emt 0:01:41]} e6 {[%emt 0:06:28]} 9. Nbd2 {[%emt 0:04:08]} Ne7 {[%emt 0:02:18]} 10. Rb1 {[%emt 0:05:19]} Nf5 {[%emt 0:06:53]} 11. e4 {[%emt 0:03:42]} Nd4 {[%emt 0:00:38]} 12. Nxd4 {[%emt 0:00:13]} Bxd4+ {[%emt 0:00:08]} 13. Kh1 {[%emt 0:00:04]} dxe4 {[%emt 0:02:23]} 14. dxe4 {[%emt 0:01:31]} Bg7 {[%emt 0:00:15]} 15. e5 {[%emt 0:04:17]} O-O {[%emt 0:02:40]} 16. Ne4 {[%emt 0:01:08]} f6 {[%emt 0:04:04]} 17. exf6 {[%emt 0:00:46]} Nxf6 {[%emt 0:00:07]} 18. Nxc5 {[%emt 0:03:32]} Re8 {[%emt 0:02:04]} 19. c4 {[%emt 0:07:29]} Qc7 {[%emt 0:02:45]} 20. Ne4 {[%emt 0:01:38]} Nxe4 {[%emt 0:01:52]} 21. Qxe4 {[%emt 0:00:35]} b5 {[%emt 0:05:29]} 22. cxb5 {[%emt 0:05:04]} axb5 {[%emt 0:01:08]} 23. a3 {[%emt 0:01:49]} Rac8 {[%emt 0:02:53]} 24. Be3 {[%emt 0:04:21]} Qc2 {[%emt 0:01:16]} 25. Qxc2 {[%emt 0:17:23]} Rxc2 {[%emt 0:00:08]} 26. Rf2 {[%emt 0:02:46]} Rxf2 {[%emt 0:04:32]} 27. Bxf2 {[%emt 0:00:20]} Rd8 {[%emt 0:00:08]} 28. b3 {[%emt 0:02:16]} Rd2 {[%emt 0:01:07]} 29. Bc5 {[%emt 0:01:58]} Bc3 {[%emt 0:02:14]} 30. h3 {[%emt 0:02:09]} Kf7 {[%emt 0:01:25]} 31. a4 {[%emt 0:02:18]} b4 {[%emt 0:04:17]} 32. Kh2 {[%emt 0:06:02]} Kf6 {[%emt 0:02:57]} 33. Be3 {[%emt 0:01:16]} Re2 {[%emt 0:01:49]} 34. Bc5 {[%emt 0:00:10]} Kf5 {[%emt 0:01:26]} 35. Bd6 {[%emt 0:01:42]} Ke4 {[%emt 0:00:58]} 36. Be5 {[%emt 0:07:46]} Kd3 {[%emt 0:00:31]} 37. a5 {[%emt 0:02:19]} Kc2 {[%emt 0:13:37]} 38. Bxc3 {[%emt 0:00:37]} bxc3 {[%emt 0:01:49]} 39. Ra1 {[%emt 0:00:13]} Kb2 {[%emt 0:00:39]} 40. Ra4 {[%emt 0:00:24]} Rd2 {[%emt 0:01:00]} 41. a6 {[%emt 0:30:31]} Rd8 {[%emt 0:32:19]} 42. a7 {[%emt 0:00:00]} c2 {[%emt 0:00:00]} 43. a8=Q {[%emt 0:00:00]} Rxa8 {[%emt 0:00:00]} 44. Rxa8 {[%emt 0:00:00]} c1=Q {[%emt 0:00:00]} 45. Ra4 {[%emt 0:00:00]} Qe3 {[%emt 0:00:00]} 0-1

[Event "CZE-ch Youth B16 2022"]
[Site "Luhacovice"]
[Date "2022.03.19"]
[Round "9.5"]
[White "Winter, Ondrej"]
[Black "Vilimek, Vit"]
[Result "1-0"]
[ECO "C06"]
[WhiteElo "2147"]
[BlackElo "1794"]
[Annotator "ChessBase"]
[PlyCount "57"]
[EventDate "2022.03.12"]
[EventType "swiss"]
[EventCountry "CZE"]
[SourceTitle "playchess.com"]
[Source "ChessBase"]
[SourceQuality "1"]
[TimeControl "40/5400+30:1800+30"]

1. e4 {[%emt 0:00:02]} e6 {[%emt 0:00:01]} 2. d4 {[%emt 0:00:06]} d5 {[%emt 0:00:02]} 3. Nd2 {[%emt 0:00:04]} Nf6 {[%emt 0:00:06]} 4. e5 {[%emt 0:00:04]} Nfd7 {[%emt 0:00:07]} 5. Bd3 {[%emt 0:00:03]} c5 {[%emt 0:00:09]} 6. c3 {[%emt 0:00:03]} Nc6 {[%emt 0:00:05]} 7. Ne2 {[%emt 0:00:03]} cxd4 {[%emt 0:00:09]} 8. cxd4 {[%emt 0:00:01]} f6 {[%emt 0:00:13]} 9. exf6 {[%emt 0:00:05]} Qxf6 {[%emt 0:01:13]} 10. Nf3 {[%emt 0:01:07]} h6 {[%emt 0:00:04]} 11. O-O {[%emt 0:01:09]} Bd6 {[%emt 0:00:09]} 12. Bc2 {[%emt 0:15:46]} a6 {[%emt 0:05:03]} 13. Ng3 {[%emt 0:00:44]} g5 {[%emt 0:21:16]} 14. Re1 {[%emt 0:08:46]} Nb6 {[%emt 0:09:15]} 15. Nf5 {[%emt 0:13:51]} Bc7 {[%emt 0:04:26]} 16. Ne5 {[%emt 0:06:10]} Nxe5 {[%emt 0:21:24]} 17. dxe5 {[%emt 0:00:01]} Qf7 {[%emt 0:07:48]} 18. Nd6+ {[%emt 0:01:18]} Bxd6 {[%emt 0:00:05]} 19. exd6 {[%emt 0:00:01]} O-O {[%emt 0:05:56]} 20. f3 {[%emt 0:02:44]} Nc4 {[%emt 0:02:44]} 21. b3 {[%emt 0:02:11]} Nxd6 {[%emt 0:00:36]} 22. Bb2 {[%emt 0:03:14]} b5 {[%emt 0:06:32]} 23. Kh1 {[%emt 0:02:10]} Nf5 {[%emt 0:01:39]} 24. Bxf5 {[%emt 0:01:44]} Qxf5 {[%emt 0:00:59]} 25. Qd4 {[%emt 0:02:16]} Qh7 {[%emt 0:02:58]} 26. Rac1 {[%emt 0:22:39]} Rf4 {[%emt 0:07:52]} 27. Qb6 {[%emt 0:05:15]} Qa7 {[%emt 0:02:23]} 28. Qxa7 {[%emt 0:01:08]} Rxa7 {[%emt 0:00:01]} 29. Rxc8+ {[%emt 0:00:02]} 1-0

[Event "CZE-ch Youth B16 2022"]
[Site "Luhacovice"]
[Date "2022.03.19"]
[Round "9.6"]
[White "Stejskal, Michal"]
[Black "Zezula, Jakub"]
[Result "0-1"]
[ECO "C44"]
[WhiteElo "1857"]
[BlackElo "1891"]
[Annotator "NA"]
[PlyCount "48"]
[EventDate "2022.03.12"]
[EventType "swiss"]
[EventCountry "CZE"]
[SourceTitle "playchess.com"]
[Source "ChessBase"]
[SourceQuality "1"]
[TimeControl "40/5400+30:1800+30"]

1. e4 {[%emt 0:00:06]} e5 {[%emt 0:00:09]} 2. Nf3 {[%emt 0:00:08]} Nc6 {[%emt 0:00:03]} 3. c3 {[%emt 0:00:09]} d5 {[%emt 0:01:05]} 4. Qa4 {[%emt 0:00:08]} Bd7 {[%emt 0:00:06]} 5. exd5 {[%emt 0:02:32]} Nd4 {[%emt 0:00:09]} 6. Qd1 {[%emt 0:00:06]} Nxf3+ {[%emt 0:00:05]} 7. Qxf3 {[%emt 0:00:06]} Bd6 {[%emt 0:00:05]} 8. Bc4 {[%emt 0:03:24]} Ne7 {[%emt 0:03:39]} 9. d3 {[%emt 0:02:25]} O-O {[%emt 0:05:50]} 10. O-O {[%emt 0:07:07]} Ng6 {[%emt 0:01:56]} 11. Nd2 {[%emt 0:01:21]} f5 {[%emt 0:00:14]} 12. g3 {[%emt 0:06:31]} ({White should try} 12. a4 $14) 12... f4 {[%emt 0:06:52]} 13. Qe2 {[%emt 0:02:23]} Bh3 {[%emt 0:13:06]} 14. f3 {[%emt 0:08:56]} Bxf1 {[%emt 0:02:16]} 15. Kxf1 {[%emt 0:00:06]} fxg3 {[%emt 0:00:46]} 16. hxg3 {[%emt 0:00:06]} Qd7 {[%emt 0:01:06]} 17. Kg2 {[%emt 0:02:26]} Rf5 {[%emt 0:05:04]} 18. Qe4 {[%emt 0:02:18]} Raf8 {[%emt 0:01:38]} 19. Bb3 {[%emt 0:03:03]} Rf4 {[%emt 0:03:44]} 20. Qe3 {[%emt 0:10:13]} Rh4 {[%emt 0:11:25]} 21. Nf1 {[%emt 0:10:18]} Qh3+ {[%emt 0:01:55]} 22. Kf2 {[%emt 0:01:41] [#]} e4 $1 {[%emt 0:01:45]} 23. dxe4 $19 {[%emt 0:00:17]} Ne5 {[%emt 0:03:44]} 24. Bd1 {[%emt 0:06:59]} Ng4+ {[%emt 0:00:10]} 0-1

[Event "CZE-ch Youth B16 2022"]
[Site "Luhacovice"]
[Date "2022.03.19"]
[Round "9.7"]
[White "Vaclavik, Jan"]
[Black "Dedek, Jan"]
[Result "1-0"]
[ECO "A05"]
[WhiteElo "1997"]
[BlackElo "1963"]
[Annotator "ChessBase"]
[PlyCount "71"]
[EventDate "2022.03.12"]
[EventType "swiss"]
[EventCountry "CZE"]
[SourceTitle "playchess.com"]
[Source "ChessBase"]
[SourceQuality "1"]
[TimeControl "40/5400+30:1800+30"]

1. Nf3 {[%emt 0:00:08]} Nf6 {[%emt 0:00:57]} 2. g3 {[%emt 0:00:47]} g6 {[%emt 0:00:57]} 3. b3 {[%emt 0:00:11]} Bg7 {[%emt 0:01:06]} 4. Bb2 {[%emt 0:00:05]} O-O {[%emt 0:01:04]} 5. Bg2 {[%emt 0:00:17]} c5 {[%emt 0:01:00]} 6. O-O {[%emt 0:00:25]} Nc6 {[%emt 0:00:46]} 7. c4 {[%emt 0:00:41]} d6 {[%emt 0:00:45]} 8. Nc3 {[%emt 0:10:02]} a6 {[%emt 0:06:42]} 9. d4 {[%emt 0:03:24]} cxd4 {[%emt 0:01:10]} 10. Nxd4 {[%emt 0:00:03]} Bd7 {[%emt 0:00:32]} 11. e4 {[%emt 0:09:36]} Qc7 {[%emt 0:13:36]} 12. Rc1 {[%emt 0:00:51]} Rfc8 {[%emt 0:03:53]} 13. Nd5 {[%emt 0:02:21]} Qd8 {[%emt 0:00:46]} 14. Re1 {[%emt 0:14:07]} Nxd5 {[%emt 0:05:54]} 15. exd5 {[%emt 0:00:55]} Nxd4 {[%emt 0:00:44]} 16. Bxd4 {[%emt 0:00:02]} b5 {[%emt 0:00:36]} 17. Bxg7 {[%emt 0:01:59]} Kxg7 {[%emt 0:00:06]} 18. Rc3 {[%emt 0:13:43]} bxc4 {[%emt 0:03:25]} 19. bxc4 {[%emt 0:00:37]} Be8 {[%emt 0:01:31]} 20. Qd4+ {[%emt 0:03:56]} Kg8 {[%emt 0:00:36]} 21. Rce3 {[%emt 0:01:28]} Rc7 {[%emt 0:00:29]} 22. h4 {[%emt 0:00:28]} h5 {[%emt 0:04:32]} 23. Bf1 {[%emt 0:02:53]} Raa7 {[%emt 0:03:33]} 24. Bd3 {[%emt 0:01:30]} Qc8 {[%emt 0:01:39]} 25. Re4 {[%emt 0:02:36]} Rab7 {[%emt 0:08:54]} 26. g4 {[%emt 0:03:40]} hxg4 {[%emt 0:00:56]} 27. h5 {[%emt 0:02:05]} gxh5 {[%emt 0:00:32]} 28. Qe3 {[%emt 0:03:17]} f6 {[%emt 0:05:35]} 29. Re6 {[%emt 0:00:34]} Kg7 {[%emt 0:00:59]} 30. Qe4 {[%emt 0:00:15]} Bf7 {[%emt 0:00:56]} 31. Qh7+ {[%emt 0:00:40]} Kf8 {[%emt 0:00:13]} 32. Qh8+ {[%emt 0:00:12]} Bg8 {[%emt 0:00:08]} 33. Qh6+ {[%emt 0:00:17]} Ke8 {[%emt 0:01:00]} 34. Bg6+ {[%emt 0:00:01]} Kd7 {[%emt 0:00:10]} 35. Rxe7+ {[%emt 0:00:06]} Kd8 {[%emt 0:00:03]} 36. Qf8# {[%emt 0:00:06]} 1-0

[Event "CZE-ch Youth B16 2022"]
[Site "Luhacovice"]
[Date "2022.03.19"]
[Round "9.8"]
[White "Bezdek, Tomas"]
[Black "Mametev, Artem"]
[Result "1-0"]
[ECO "A02"]
[WhiteElo "1855"]
[BlackElo "1848"]
[Annotator "NA"]
[PlyCount "53"]
[EventDate "2022.03.12"]
[EventType "swiss"]
[EventCountry "CZE"]
[SourceTitle "playchess.com"]
[Source "ChessBase"]
[SourceQuality "1"]
[TimeControl "40/5400+30:1800+30"]

1. f4 {[%emt 0:00:37]} Nf6 {[%emt 0:00:54]} 2. Nf3 {[%emt 0:00:33]} d5 {[%emt 0:01:39]} 3. g3 {[%emt 0:01:37]} g6 {[%emt 0:05:19]} 4. Bg2 {[%emt 0:00:41]} Bg7 {[%emt 0:00:08]} 5. O-O {[%emt 0:00:06]} O-O {[%emt 0:00:19]} 6. d3 {[%emt 0:00:41]} c6 {[%emt 0:03:24]} 7. c3 {[%emt 0:18:19]} Nbd7 {[%emt 0:06:23]} 8. Qc2 {[%emt 0:06:19]} a5 {[%emt 0:05:33]} 9. e4 {[%emt 0:10:24]} dxe4 {[%emt 0:03:04]} 10. dxe4 {[%emt 0:01:23]} Nc5 {[%emt 0:01:25]} 11. Ne5 {[%emt 0:05:57]} Nfd7 {[%emt 0:10:34]} 12. Nxd7 {[%emt 0:03:42]} Bxd7 {[%emt 0:11:41]} 13. Be3 {[%emt 0:01:04]} Na6 {[%emt 0:00:19]} 14. Nd2 {[%emt 0:02:11]} b5 {[%emt 0:03:40]} 15. Rad1 {[%emt 0:01:02]} Qc7 {[%emt 0:01:37]} 16. Nb3 {[%emt 0:06:02]} Rad8 {[%emt 0:04:42]} 17. Qf2 {[%emt 0:01:04]} Rb8 $16 {[%emt 0:06:52]} 18. Rd2 {[%emt 0:14:06]} b4 {[%emt 0:04:45]} 19. f5 {[%emt 0:06:57]} bxc3 {[%emt 0:02:48]} 20. bxc3 {[%emt 0:00:09]} Bxc3 {[%emt 0:02:47]} 21. Rd3 {[%emt 0:00:16]} Bg7 {[%emt 0:01:37]} 22. Bf4 {[%emt 0:01:00]} Qb7 {[%emt 0:06:29]} 23. Bxb8 {[%emt 0:01:00]} Rxb8 {[%emt 0:00:31]} 24. fxg6 {[%emt 0:00:28]} fxg6 {[%emt 0:00:14]} 25. Qf7+ {[%emt 0:01:52]} Kh8 {[%emt 0:00:01]} 26. Qxe7 {[%emt 0:01:03]} Bg4 {[%emt 0:00:37]} 27. Rd8+ 1-0